bitfinex-derivatives/quotes_SOLF0:USTF0_20250904
["timestamp","ask_amount","ask_price","bid_price","bid_amount"]
[1756994135832,7.78,207.18,207.03,7.3]
[1756994136028,20.68806319,207.18,206.95,7.3]
[1756994136232,20.68806319,207.18,206.96,7.3]
[1756994136633,0.03680092,207.09,206.96,7.3]
[1756994136836,7.78,207.08,206.96,7.3]
[1756994137231,0.03422631,207.04,206.96,7.3]
[1756994138729,7.78,207.03,206.89,7.3]
[1756994138928,54.0,207.02,206.89,7.3]
[1756994139134,323.90806319,207.08,206.89,7.3]
[1756994139334,0.03355429,206.98,206.89,7.3]
[1756994139829,0.03355429,206.98,206.92,1.88311651]
[1756994140032,0.03355429,206.98,206.95,7.3]
[1756994140442,1.88311651,207.0,206.93,1.88311651]
[1756994140642,0.03472395,206.99,206.92,1.88311651]
[1756994141645,9.66311651,206.98,206.91,7.3]
[1756994141940,1.88311651,206.96,206.89,1.88311651]
[1756994142148,1.88311651,206.97,206.89,1.88311651]
[1756994142542,0.03580889,206.95,206.89,1.88311651]
[1756994142951,0.03580889,206.95,206.89,9.84311651]
[1756994143440,1.9189254,206.95,206.89,7.96]
[1756994143637,1.9189254,206.95,206.88,1.88311651]
[1756994143847,1.88311651,206.91,206.85,7.96]
[1756994144243,7.7,206.95,206.85,7.96]
[1756994144444,0.03396388,206.9,206.84,9.84311651]
[1756994146347,0.03396388,206.9,206.89,7.96]
[1756994147743,0.03396388,206.9,206.79,21.3]
[1756994147744,0.03396388,206.9,206.87,7.96]
[1756994147940,0.03396388,206.9,206.87,1.88311651]
[1756994148144,0.03396388,206.9,206.88,7.96]
[1756994148345,0.03396388,206.9,206.84,1.88311651]
[1756994148751,1.88311651,206.93,206.86,1.88311651]
[1756994148948,0.03404113,206.89,206.86,1.88311651]
[1756994149148,0.03404113,206.89,206.87,7.96]
[1756994149548,0.03404113,206.89,206.87,1.88311651]
[1756994149741,0.03404113,206.89,206.85,1.88311651]
[1756994149947,1.91715764,206.89,206.82,9.84311651]
[1756994150252,1.88311651,206.86,206.78,1.88311651]
[1756994150544,1.88311651,206.86,206.8,1.88311651]
[1756994150751,9.61523059,206.88,206.8,1.88311651]
[1756994150950,9.58311651,206.88,206.8,1.88311651]
[1756994151154,0.03341412,206.86,206.82,1.88311651]
[1756994151452,0.03341412,206.86,206.82,7.96]
[1756994152948,0.03341412,206.86,206.76,7.96]
[1756994153545,7.7,206.85,206.76,7.96]
[1756994153949,0.03341412,206.86,206.76,7.96]
[1756994156854,7.7,206.85,206.76,7.96]
[1756994157154,7.7,206.85,206.72,4.71276199]
[1756994157351,7.7,206.85,206.71,7.96]
[1756994157758,0.0328632,206.8,206.71,7.96]
[1756994161263,0.0328632,206.8,206.75,7.96]
[1756994161455,0.0328632,206.8,206.69,311.02]
[1756994161456,0.0328632,206.8,206.77,4.71276199]
[1756994161657,0.0328632,206.8,206.78,7.96]
[1756994161965,0.0328632,206.8,206.77,4.71276199]
[1756994162464,0.0328632,206.8,206.69,311.02]
[1756994162767,0.0328632,206.8,206.77,7.96]
[1756994162964,0.0328632,206.8,206.76,4.71276199]
[1756994163170,0.0328632,206.8,206.77,7.96]
[1756994163562,0.0328632,206.8,206.74,7.96]
[1756994163760,53.42,206.93,206.69,311.02]
[1756994163761,7.7,206.93,206.77,7.65937164]
[1756994164066,7.7,206.93,206.79,7.96]
[1756994164261,7.7,206.93,206.82,7.96]
[1756994164968,7.7,206.93,206.85,0.03514917]
[1756994164969,0.03135998,206.9,206.85,0.03514917]
[1756994165164,7.73135998,206.9,206.85,7.99514917]
[1756994166862,0.03135998,206.9,206.85,0.03514917]
[1756994167062,7.7,206.89,206.85,0.03514917]
[1756994167258,0.03135998,206.9,206.85,7.99514917]
[1756994167759,7.73135998,206.9,206.85,7.99514917]
[1756994168162,0.03135998,206.9,206.85,0.03514917]
[1756994168466,0.03135998,206.9,206.86,7.96]
[1756994169363,0.03135998,206.9,206.85,0.03514917]
[1756994169864,0.03135998,206.9,206.86,7.96]
[1756994170369,0.03135998,206.9,206.85,0.03514917]
[1756994170765,0.03135998,206.9,206.86,7.96]
[1756994171174,0.03135998,206.9,206.85,0.03514917]
[1756994171375,0.03135998,206.9,206.86,7.96]
[1756994171571,0.03135998,206.9,206.85,0.03514917]
[1756994172172,0.03135998,206.9,206.86,7.6]
[1756994172765,0.03135998,206.9,206.85,0.03514917]
[1756994173166,0.03135998,206.9,206.86,7.6]
[1756994173370,0.03135998,206.9,206.85,0.03514917]
[1756994173569,0.03135998,206.9,206.89,7.6]
[1756994174564,7.7,206.96,206.89,7.6]
[1756994174768,7.55,207.03,206.93,2.94294851]
[1756994177977,7.55,207.03,206.96,0.03549779]
[1756994180074,7.55,207.03,206.97,2.94294851]
[1756994181587,7.55,207.03,206.96,0.03549779]
[1756994183978,10.49294851,207.03,206.96,0.03549779]
[1756994185878,2.94294851,207.0,206.96,0.03549779]
[1756994186084,7.55,206.99,206.96,0.03549779]
[1756994186583,3.42294851,207.0,206.96,0.03549779]
[1756994186780,7.55,206.99,206.96,0.03549779]
[1756994186986,7.55,207.0,206.96,0.03549779]
[1756994187186,124.2,207.01,206.96,0.03549779]
[1756994187586,7.55,207.0,206.96,0.03549779]
[1756994187787,124.18,207.04,206.96,0.03549779]
[1756994187985,7.55,207.03,206.96,0.03549779]
[1756994189588,7.55,207.03,206.96,2.9784463]
[1756994189783,5.33465993,207.13,206.96,10.5784463]
[1756994189981,311.26,207.17,206.99,2.94294851]
[1756994189982,5.33465993,207.15,206.99,2.94294851]
[1756994190181,7.55,207.11,206.99,10.54294851]
[1756994190386,53.76,207.1,207.05,0.03440631]
[1756994190785,7.55,207.09,207.05,0.03440631]
[1756994190981,2.94294851,207.12,207.05,0.03440631]
[1756994191185,131.71,207.11,207.05,0.03440631]
[1756994191582,7.55,207.11,207.05,0.03440631]
[1756994192491,131.69,207.11,207.05,0.03440631]
[1756994192691,7.55,207.11,207.05,0.03440631]
[1756994192891,311.26,207.17,207.05,0.03440631]
[1756994193089,131.67,207.16,207.05,7.63440631]
[1756994194189,7.55,207.16,207.06,7.64132638]
[1756994194491,7.55,207.23,207.11,7.6]
[1756994194684,7.55,207.28,207.12,4.344]
[1756994194881,7.55,207.28,207.13,7.6]
[1756994195293,7.55,207.28,207.18,0.0367415]
[1756994197195,103.99,207.28,207.18,0.0367415]
[1756994200903,7.55,207.24,207.18,0.0367415]
[1756994209306,7.61,207.31,207.19,7.22]
[1756994209913,7.61,207.31,207.23,0.03067187]
[1756994211515,7.61,207.27,207.23,0.03067187]
[1756994211809,10.54518384,207.29,207.23,0.03067187]
[1756994212009,131.47,207.29,207.23,0.03067187]
[1756994212314,7.61,207.29,207.23,0.03067187]
[1756994215716,7.61,207.27,207.23,0.03067187]
[1756994215912,123.8,207.29,207.23,0.03067187]
[1756994216516,131.41,207.29,207.23,0.03067187]
[1756994216817,7.61,207.29,207.23,0.03067187]
[1756994223425,7.61,207.27,207.23,0.03067187]
[1756994223722,2.93518384,207.25,207.23,0.03067187]
[1756994223920,123.72,207.26,207.23,0.03067187]
[1756994223921,7.61,207.24,207.23,0.03067187]
[1756994224823,7.61,207.3,207.23,0.03067187]
[1756994225121,2.93518384,207.29,207.23,0.03067187]
[1756994225316,7.61,207.28,207.23,0.03067187]
[1756994225516,7.61,207.26,207.23,0.03067187]
[1756994225716,1.87836923,207.27,207.23,0.03067187]
[1756994226124,7.61,207.26,207.23,0.03067187]
[1756994226321,123.7,207.3,207.23,0.03067187]
[1756994226322,9.48836923,207.24,207.23,0.03067187]
[1756994229023,69.55836923,207.28,207.23,0.03067187]
[1756994229223,7.61,207.27,207.23,0.03067187]
[1756994229925,123.66,207.3,207.23,0.03067187]
[1756994230123,1.87836923,207.28,207.23,0.03067187]
[1756994230324,7.61,207.25,207.23,0.03067187]
[1756994231525,1.87836923,207.27,207.23,0.03067187]
[1756994231724,7.61,207.26,207.23,0.03067187]
[1756994233026,9.67836923,207.3,207.23,0.03067187]
[1756994233423,7.8,207.3,207.24,1.87836923]
[1756994233823,1.87836923,207.29,207.23,0.03067187]
[1756994234130,7.8,207.3,207.23,0.03067187]
[1756994234332,9.67836923,207.3,207.23,0.03067187]
[1756994236031,7.8,207.3,207.24,1.87836923]
[1756994236629,7.8,207.3,207.23,0.03067187]
[1756994236829,9.67836923,207.3,207.24,1.87836923]
[1756994239123,9.67836923,207.3,207.23,0.03067187]
[1756994239728,7.8,207.3,207.24,1.87836923]
[1756994242432,1.87836923,207.32,207.26,1.87836923]
[1756994242627,7.8,207.31,207.26,1.87836923]
[1756994243028,9.67836923,207.32,207.26,1.87836923]
[1756994244034,5.33465993,207.33,207.25,7.61]
[1756994244233,1.87836923,207.35,207.29,1.87836923]
[1756994244434,1.87836923,207.33,207.27,1.87836923]
[1756994244734,7.8,207.32,207.25,9.48836923]
[1756994244936,7.8,207.33,207.27,1.87836923]
[1756994245130,1.87836923,207.34,207.28,0.03258082]
[1756994245337,7.8,207.33,207.28,0.03258082]
[1756994245537,9.67836923,207.34,207.28,0.03258082]
[1756994245737,7.8,207.34,207.28,0.03258082]
[1756994247140,1.87836923,207.33,207.28,0.03258082]
[1756994247736,7.8,207.32,207.28,0.03258082]
[1756994248039,7.8,207.3,207.28,0.03258082]
[1756994248239,1.87836923,207.31,207.28,0.03258082]
[1756994249842,7.8,207.3,207.28,0.03258082]
[1756994250040,1.87836923,207.31,207.28,0.03258082]
[1756994250442,9.67836923,207.29,207.28,0.03258082]
[1756994252745,7.8,207.29,207.28,0.03258082]
[1756994253341,7.8,207.3,207.28,0.03258082]
[1756994254047,7.8,207.31,207.28,0.03258082]
[1756994254345,7.21302916,207.34,207.28,0.03258082]
[1756994254739,7.8,207.33,207.28,0.03258082]
[1756994254939,15.01302916,207.34,207.28,1.91095005]
[1756994255140,7.8,207.34,207.3,1.87836923]
[1756994255347,7.8,207.34,207.3,9.48836923]
[1756994255545,13.13465993,207.36,207.3,1.87836923]
[1756994256146,1.87836923,207.35,207.28,1.91095005]
[1756994256342,1.87836923,207.35,207.28,0.03258082]
[1756994256546,1.87836923,207.35,207.28,1.91095005]
[1756994256547,7.8,207.34,207.28,1.91095005]
[1756994256741,7.8,207.32,207.28,0.03258082]
[1756994257047,15.01302916,207.34,207.28,0.03258082]
[1756994257246,9.67836923,207.34,207.28,0.03258082]
[1756994258248,7.8,207.34,207.28,0.03258082]
[1756994258449,7.8,207.34,207.29,1.87836923]
[1756994258644,15.01302916,207.35,207.29,1.87836923]
[1756994258946,7.8,207.35,207.29,1.87836923]
[1756994261446,7.8,207.37,207.31,1.87836923]
[1756994262746,5.33465993,207.4,207.33,1.87836923]
[1756994262944,9.49836923,207.41,207.33,1.87836923]
[1756994263348,9.49836923,207.41,207.35,1.9109809]
[1756994263852,9.49836923,207.41,207.35,0.03261167]
[1756994265755,7.62,207.41,207.35,0.03261167]
[1756994265948,1.87836923,207.42,207.36,1.87836923]
[1756994266346,7.62,207.43,207.35,0.03261167]
[1756994266652,0.83946448,207.46,207.35,0.03261167]
[1756994266653,7.62,207.38,207.35,0.03261167]
[1756994266852,7.62,207.38,207.35,1.9109809]
[1756994267045,9.49836923,207.4,207.35,9.8709809]
[1756994267241,5.33465993,207.44,207.35,1.9109809]
[1756994267446,7.62,207.43,207.37,1.87836923]
[1756994268651,9.49836923,207.43,207.37,1.87836923]
[1756994269252,9.49836923,207.43,207.35,1.9109809]
[1756994269550,1.87836923,207.41,207.35,1.9109809]
[1756994269754,1.87836923,207.41,207.35,0.03261167]
[1756994270049,1.87836923,207.4,207.35,0.03261167]
[1756994270944,0.83941386,207.46,207.35,0.03261167]
[1756994270945,1.87836923,207.38,207.35,0.03261167]
[1756994271549,7.62,207.37,207.35,0.03261167]
[1756994272455,1.87836923,207.38,207.35,0.03261167]
[1756994272758,7.62,207.36,207.35,0.03261167]
[1756994276750,7.62,207.37,207.35,0.03261167]
[1756994277456,9.49836923,207.36,207.35,0.03261167]
[1756994280052,9.49836923,207.36,207.25,7.96]
[1756994280252,0.83941386,207.46,207.25,7.96]
[1756994280253,1.87836923,207.31,207.25,7.96]
[1756994280952,1.87836923,207.29,207.16,188.33894444]
[1756994281157,1.87836923,207.29,207.21,9.83836923]
[1756994281460,1.87836923,207.29,207.21,7.96]
[1756994281960,1.87836923,207.27,207.21,7.96]
[1756994282157,9.49836923,207.27,207.21,7.96]
[1756994282364,9.49836923,207.27,207.2,0.03115228]
[1756994282661,7.62,207.27,207.2,0.03115228]
[1756994282958,1.87836923,207.26,207.2,0.03115228]
[1756994287461,7.62,207.27,207.2,0.03115228]
[1756994292463,7.62,207.27,207.2,7.73115228]
[1756994295764,7.5,207.34,207.2,7.73115228]
[1756994296162,7.5,207.34,207.2,7.7]
[1756994296364,7.5,207.34,207.25,0.03155527]
[1756994298064,12.83465993,207.34,207.25,0.03155527]
[1756994299356,7.5,207.34,207.25,0.03155527]
[1756994301064,12.83465993,207.34,207.25,0.03155527]
[1756994302162,12.83465993,207.31,207.25,0.03155527]
[1756994302466,7.5,207.31,207.25,0.03155527]
[1756994302663,12.83465993,207.31,207.16,7.7]
[1756994302964,7.5,207.29,207.16,7.7]
[1756994303964,7.5,207.24,207.16,7.7]
[1756994307061,7.5,207.24,207.13,7.7]
[1756994307863,7.5,207.2,207.07,7.7]
[1756994308463,0.03434487,207.16,207.07,7.7]
[1756994314173,7.53434487,207.16,207.07,7.7]
[1756994317981,7.53434487,207.16,206.98,7.7]
[1756994318282,7.5,207.16,207.0,7.7]
[1756994318469,0.03289305,207.09,207.0,7.7]
[1756994320081,7.53289305,207.09,207.0,7.7]
[1756994321378,7.5,207.08,206.96,188.3439802]
[1756994321977,0.03122589,207.04,206.97,7.7]
[1756994323781,0.03122589,207.04,206.97,8.18]
[1756994323980,0.03122589,207.04,206.99,7.2]
[1756994325281,0.03122589,207.04,206.98,7.2]
[1756994326376,0.03122589,207.04,207.0,7.2]
[1756994326971,0.03122589,207.04,206.99,123.32]
[1756994327173,0.03122589,207.04,207.0,7.2]
[1756994327778,0.03122589,207.04,206.99,123.32]
[1756994328681,0.03122589,207.04,207.0,7.2]
[1756994328881,0.03122589,207.04,206.99,123.32]
[1756994329080,7.28122589,207.04,206.98,123.32]
[1756994329283,0.03122589,207.04,206.97,130.52]
[1756994329683,0.03122589,207.04,206.98,7.2]
[1756994332279,0.03122589,207.04,206.99,123.32]
[1756994333084,0.03122589,207.04,207.0,7.2]
[1756994333793,0.03122589,207.04,206.99,123.32]
[1756994334488,0.03122589,207.04,207.0,7.2]
[1756994334689,7.25,207.03,206.96,311.1639802]
[1756994334885,0.03122589,207.04,206.96,311.1639802]
[1756994335188,0.03122589,207.04,206.97,7.2]
[1756994340496,0.03122589,207.04,206.98,123.3]
[1756994340796,0.03122589,207.04,206.96,180.6439802]
[1756994341098,0.03122589,207.04,206.98,7.2]
[1756994346098,0.03122589,207.04,207.0,7.2]
[1756994346294,0.03122589,207.04,206.99,71.18]
[1756994346694,0.03122589,207.04,207.0,7.2]
[1756994347201,0.03122589,207.04,206.99,71.18]
[1756994347598,0.03122589,207.04,207.0,7.2]
[1756994347901,0.03122589,207.04,206.99,71.18]
[1756994348198,0.03122589,207.04,207.0,7.2]
[1756994348403,0.03122589,207.04,206.99,71.18]
[1756994349000,0.03122589,207.04,207.0,7.2]
[1756994349199,0.03122589,207.04,206.99,71.18]
[1756994349597,0.03122589,207.04,207.0,7.2]
[1756994350004,0.03122589,207.04,206.99,71.18]
[1756994350205,0.03122589,207.04,207.0,7.2]
[1756994350404,0.03122589,207.04,206.99,71.18]
[1756994350809,0.03122589,207.04,207.0,7.2]
[1756994351609,0.03122589,207.04,206.99,71.18]
[1756994351912,0.03122589,207.04,207.0,7.2]
[1756994352307,0.03122589,207.04,206.99,71.18]
[1756994353110,0.03122589,207.04,207.0,7.81]
[1756994353306,7.74122589,207.04,206.96,7.81]
[1756994353507,0.03122589,207.04,206.96,7.81]
[1756994357011,7.71,207.03,206.96,7.81]
[1756994359324,0.03122589,207.04,206.93,4.04404895]
[1756994359524,7.71,207.03,206.94,1.88057418]
[1756994359725,7.71,207.06,206.92,11.85404895]
[1756994359926,7.71,207.06,206.93,1.88059926]
[1756994360123,7.71,207.06,206.94,1.88059926]
[1756994360323,7.71,207.06,206.92,7.81]
[1756994360529,7.71,207.01,206.93,1.88050817]
[1756994360730,7.71,207.01,206.92,7.81]
[1756994360918,7.71,207.01,206.93,1.88052522]
[1756994361121,7.71,207.01,206.92,7.81]
[1756994361422,7.71,207.01,206.93,1.88052522]
[1756994361621,7.71,207.01,206.92,7.81]
[1756994361826,7.71,207.01,206.93,1.8805682]
[1756994362128,7.71,207.01,206.92,7.81]
[1756994362427,7.71,207.01,206.93,1.8805682]
[1756994362630,7.71,207.01,206.92,7.81]
[1756994362832,7.71,207.01,206.93,1.88062222]
[1756994363022,0.0343158,207.02,206.95,7.81]
[1756994363825,7.7443158,207.02,206.95,7.81]
[1756994369035,7.7443158,207.02,206.9,14.66967344]
[1756994369036,7.7443158,207.02,206.91,7.81]
[1756994369338,7.7443158,207.02,206.9,13.39722895]
[1756994369339,7.7443158,207.02,206.93,7.81]
[1756994369837,7.7443158,207.02,206.9,9.35318]
[1756994373941,7.7443158,207.02,206.91,7.81]
[1756994386249,0.0343158,207.02,206.92,1.87235229]
[1756994386545,0.0343158,207.02,206.93,7.26]
[1756994387947,0.0343158,207.02,206.95,7.26]
[1756994388143,0.0343158,207.02,206.96,1.87207965]
[1756994388347,0.0343158,207.02,206.97,7.26]
[1756994391254,0.0343158,207.02,206.98,7.26]
[1756994391550,0.0343158,207.02,206.97,7.26]
[1756994391760,0.0343158,207.02,206.99,7.26]
[1756994392755,7.78,207.15,206.99,7.26]
[1756994392956,7.78,207.15,207.0,7.26]
[1756994394060,7.78,207.15,207.05,0.03558908]
[1756994395561,7.78,207.15,206.99,9.1318478]
[1756994395763,7.78,207.11,206.99,7.26]
[1756994396764,0.03524415,207.07,206.99,7.26]
[1756994397367,0.03524415,207.07,206.99,9.13188215]
[1756994397566,0.03524415,207.07,206.96,4.04404895]
[1756994397567,0.03524415,207.07,206.98,7.26]
[1756994397767,0.03524415,207.07,207.0,7.26]
[1756994399169,0.03524415,207.07,207.01,7.26]
[1756994399371,0.03524415,207.07,207.03,7.26]
[1756994399566,0.03524415,207.07,207.03,132.15103592]
[1756994399761,7.78,207.15,207.04,7.26]
[1756994399966,7.78,207.21,207.05,5.91492108]
[1756994400164,7.78,207.21,207.06,7.26]
[1756994400370,5.33465993,207.18,207.02,7.26]
[1756994400575,7.78,207.17,207.02,7.26]
[1756994400866,7.78,207.17,206.99,7.26]
[1756994401068,7.78,207.17,207.07,0.03599794]
[1756994401464,13.11465993,207.17,206.97,7.26]
[1756994401665,7.78,207.15,207.1,0.03082542]
[1756994401864,13.11465993,207.15,206.97,1.87097742]
[1756994402062,13.11465993,207.15,206.83,10.63298688]
[1756994402063,7.78,207.11,206.92,4.04404895]
[1756994402264,5.33465993,207.04,206.9,9.35318]
[1756994402464,5.33465993,207.02,206.9,9.35318]
[1756994402670,7.78,206.98,206.9,1.35318]
[1756994403273,7.78,206.98,206.9,8.61318]
[1756994403766,13.11465993,207.04,206.9,8.61318]
[1756994403969,7.78,207.04,206.9,8.61318]
[1756994404164,7.78,207.04,206.92,7.26]
[1756994404565,7.78,207.08,206.92,7.26]
[1756994404768,7.78,207.12,206.94,7.26]
[1756994404971,0.03127244,207.02,206.96,7.26]
[1756994405162,13.04,207.17,207.02,7.26]
[1756994405163,18.37465993,207.17,207.02,7.26]
[1756994405367,5.33465993,207.19,207.02,7.26]
[1756994405571,7.78,207.16,207.02,7.26]
[1756994406474,7.78,207.16,207.07,0.033455]
[1756994407565,5.33465993,207.21,207.07,0.033455]
[1756994407566,7.78,207.21,207.08,7.26]
[1756994408174,7.78,207.25,207.12,7.29629466]
[1756994408477,7.78,207.25,207.12,7.26]
[1756994408678,7.78,207.25,207.16,0.03124255]
[1756994409680,7.78,207.25,207.16,7.29124255]
[1756994410278,7.78,207.25,207.16,0.03124255]
[1756994418484,7.78,207.25,207.16,7.77124255]
[1756994419887,7.78,207.25,207.16,0.03124255]
[1756994421987,21.19,207.31,207.17,7.74]
[1756994422387,7.95,207.31,207.17,7.74]
[1756994422585,7.95,207.31,207.22,0.03322991]
[1756994430795,7.95,207.31,207.22,7.77322991]
[1756994432193,7.95,207.31,207.22,0.03322991]
[1756994433897,7.95,207.38,207.23,7.74]
[1756994434491,7.95,207.38,207.28,0.03129382]
[1756994435386,7.95,207.38,207.29,7.74]
[1756994435994,7.95,207.45,207.29,7.74]
[1756994436591,0.03202266,207.39,207.35,0.03358874]
[1756994436787,7.98202266,207.39,207.35,0.03358874]
[1756994437187,0.03202266,207.39,207.35,0.03358874]
[1756994437387,0.03202266,207.39,207.35,7.77358874]
[1756994437586,0.03202266,207.39,207.36,7.74]
[1756994438595,0.03202266,207.39,207.35,0.03358874]
[1756994438798,0.03202266,207.39,207.36,7.74]
[1756994438995,0.03202266,207.39,207.35,0.03358874]
[1756994439195,0.03202266,207.39,207.36,7.74]
[1756994439593,18.25465993,207.54,207.36,7.74]
[1756994439594,7.95,207.5,207.37,8.17083614]
[1756994439798,7.95,207.5,207.38,93.44]
[1756994439999,7.95,207.5,207.39,7.74]
[1756994440195,7.95,207.5,207.42,7.74]
[1756994440391,7.95,207.56,207.42,7.74]
[1756994441000,7.95,207.56,207.47,0.03607607]
[1756994443502,7.95,207.56,207.48,7.93]
[1756994444701,7.44,207.63,207.48,7.93]
[1756994445205,7.44,207.63,207.53,0.03383669]
[1756994451412,7.44,207.63,207.54,7.93]
[1756994454608,7.44,207.73,207.54,7.93]
[1756994454812,7.44,207.73,207.58,7.93]
[1756994455206,7.44,207.73,207.57,8.17083614]
[1756994455207,7.44,207.73,207.63,0.03593711]
[1756994461417,15.61083614,207.73,207.52,8.93]
[1756994461719,7.44,207.72,207.53,7.93]
[1756994462526,7.44,207.72,207.57,7.93]
[1756994462722,7.44,207.72,207.61,7.93]
[1756994462933,7.44,207.72,207.61,48.73]
[1756994463324,7.44,207.72,207.64,0.0345557]
[1756994463828,7.44,207.72,207.64,7.9645557]
[1756994464017,6.17594,207.74,207.64,8.20539184]
[1756994464218,6.17594,207.74,207.68,8.17083614]
[1756994464424,6.17594,207.74,207.69,131.01]
[1756994464625,6.17594,207.74,207.69,7.93]
[1756994464821,7.44,207.73,207.69,123.11299218]
[1756994465026,6.17594,207.74,207.69,0.03299218]
[1756994465221,13.61594,207.74,207.69,0.03299218]
[1756994465426,6.17594,207.74,207.7,7.93]
[1756994465627,7.44,207.73,207.69,0.03299218]
[1756994465828,6.17594,207.74,207.69,0.03299218]
[1756994466028,13.61594,207.74,207.69,7.96299218]
[1756994466230,6.17594,207.74,207.69,0.03299218]
[1756994467423,6.17594,207.74,207.71,7.93]
[1756994467728,6.17594,207.74,207.7,8.17083614]
[1756994468035,6.17594,207.74,207.7,7.93]
[1756994468226,6.17594,207.74,207.69,12.53592832]
[1756994468432,6.17594,207.74,207.69,8.20382832]
[1756994468731,6.17594,207.74,207.71,7.93]
[1756994468933,6.17594,207.74,207.7,123.04]
[1756994469128,6.17594,207.74,207.71,7.93]
[1756994469435,6.17594,207.74,207.69,8.20382832]
[1756994469628,6.17594,207.74,207.72,7.93]
[1756994469829,6.17594,207.74,207.71,4.66976926]
[1756994470030,6.17594,207.74,207.72,7.93]
[1756994470226,6.17594,207.74,207.71,4.66976926]
[1756994470436,13.61594,207.74,207.69,7.96299218]
[1756994470634,7.44,207.73,207.69,0.03299218]
[1756994470929,6.17594,207.74,207.69,74.98299218]
[1756994471129,6.17594,207.74,207.69,67.05299218]
[1756994471332,6.17594,207.74,207.69,0.03299218]
[1756994471531,6.17594,207.74,207.7,123.76]
[1756994471532,13.61594,207.74,207.7,123.76]
[1756994471727,6.17594,207.74,207.69,0.03299218]
[1756994472034,7.44,207.73,207.69,123.79299218]
[1756994472527,6.17594,207.74,207.69,0.03299218]
[1756994472732,8.28,207.73,207.56,5.68976926]
[1756994472934,7.8,207.73,207.56,4.66976926]
[1756994473133,6.20955364,207.74,207.56,4.66976926]
[1756994473335,6.17594,207.74,207.57,56.02]
[1756994473535,7.8,207.73,207.58,88.62]
[1756994473734,6.17594,207.74,207.58,88.62]
[1756994473933,7.8,207.73,207.61,7.4]
[1756994474135,7.8,207.73,207.63,4.66976926]
[1756994474338,0.0327481,207.68,207.63,4.66976926]
[1756994474532,0.0327481,207.68,207.64,7.4]
[1756994474734,0.0327481,207.68,207.65,123.7]
[1756994475535,0.0327481,207.68,207.67,7.4]
[1756994475729,6.17594,207.74,207.67,7.4]
[1756994475929,6.17594,207.74,207.69,4.66976926]
[1756994476329,6.17594,207.74,207.7,7.4]
[1756994476530,6.17594,207.74,207.69,4.66976926]
[1756994476734,6.17594,207.74,207.73,7.4]
[1756994478332,7.8,207.79,207.73,7.4]
[1756994478536,7.8,207.88,207.75,4.66976926]
[1756994478937,7.8,207.88,207.79,0.03374797]
[1756994479236,4.66976926,207.84,207.68,12.06976926]
[1756994479635,4.66976926,207.84,207.68,24.96]
[1756994479636,7.8,207.83,207.68,24.96]
[1756994479836,4.66976926,207.84,207.68,29.62976926]
[1756994480036,7.8,207.83,207.68,29.62976926]
[1756994480240,4.66976926,207.81,207.66,37.54]
[1756994480636,7.8,207.77,207.66,37.54]
[1756994481140,0.03573159,207.74,207.63,7.4]
[1756994481351,7.8,207.73,207.64,78.72]
[1756994482441,7.8,207.73,207.63,130.8]
[1756994484146,0.03573159,207.74,207.64,7.4]
[1756994484742,0.03573159,207.74,207.66,7.4]
[1756994485138,7.8,207.73,207.55,7.4]
[1756994485346,7.8,207.73,207.59,7.4]
[1756994485642,0.03467212,207.68,207.59,13.60416252]
[1756994485841,0.03467212,207.68,207.6,1.86986252]
[1756994486241,0.03467212,207.68,207.62,4.66976926]
[1756994486451,0.03467212,207.68,207.62,12.06976926]
[1756994486644,0.03467212,207.68,207.62,7.4]
[1756994486848,0.03467212,207.68,207.62,130.72]
[1756994487149,0.03467212,207.68,207.62,7.4]